[Event "Early-Titled-Tuesday-Blitz-September-05-2023"]
[Site "Chess.com"]
[Date "2023.09.05"]
[Round "7"]
[White "Aygehovit1992"]
[Black "ozates"]
[Result "1-0"]
[WhiteElo "2705"]
[BlackElo "2566"]
[TimeControl "180+1"]
[EndTime "9:16:47 PDT"]
[Termination "Aygehovit1992 won by resignation"]

1. e4 {[%clk 0:02:55.1]} 1... e5 {[%clk 0:02:57.7]} 2. Nf3 {[%clk 0:02:55.3]}
2... Nc6 {[%clk 0:02:58.2]} 3. Bb5 {[%clk 0:02:55.9]} 3... a6 {[%clk 0:02:56.9]}
4. Ba4 {[%clk 0:02:56.5]} 4... Nf6 {[%clk 0:02:56.1]} 5. O-O {[%clk 0:02:57]}
5... Be7 {[%clk 0:02:56.4]} 6. d3 {[%clk 0:02:56.9]} 6... b5 {[%clk 0:02:55.8]}
7. Bb3 {[%clk 0:02:56.8]} 7... O-O {[%clk 0:02:54.8]} 8. Nc3 {[%clk 0:02:56.1]}
8... d6 {[%clk 0:02:54.9]} 9. a3 {[%clk 0:02:56.6]} 9... Be6 {[%clk 0:02:51.6]}
10. Nd5 {[%clk 0:02:48.2]} 10... h6 {[%clk 0:02:48.4]} 11. c4 {[%clk 0:02:44.8]}
11... Rb8 {[%clk 0:02:45.6]} 12. h3 {[%clk 0:02:34.9]} 12... Na5 {[%clk
0:02:45.6]} 13. Ba2 {[%clk 0:02:29.9]} 13... c6 {[%clk 0:02:43.4]} 14. Nxe7+
{[%clk 0:02:25.9]} 14... Qxe7 {[%clk 0:02:43.1]} 15. b4 {[%clk 0:02:26.8]} 15...
Nb7 {[%clk 0:02:40.5]} 16. Re1 {[%clk 0:02:26.2]} 16... bxc4 {[%clk 0:02:24.7]}
17. dxc4 {[%clk 0:02:27.1]} 17... a5 {[%clk 0:02:24.7]} 18. Bb2 {[%clk
0:02:12.6]} 18... Ra8 {[%clk 0:02:23]} 19. b5 {[%clk 0:01:53.9]} 19... c5 {[%clk
0:02:18.8]} 20. a4 {[%clk 0:01:49.8]} 20... Nd7 {[%clk 0:02:08.9]} 21. Nd2
{[%clk 0:01:42.5]} 21... Nb6 {[%clk 0:02:03.5]} 22. Rc1 {[%clk 0:01:40.7]} 22...
f6 {[%clk 0:01:57.8]} 23. Nf1 {[%clk 0:01:40.7]} 23... Rfd8 {[%clk 0:01:36]} 24.
Ne3 {[%clk 0:01:40.3]} 24... Qf7 {[%clk 0:01:25.1]} 25. Kh2 {[%clk 0:01:39]}
25... g6 {[%clk 0:01:21.4]} 26. g3 {[%clk 0:01:34.5]} 26... Kg7 {[%clk
0:01:15.4]} 27. f4 {[%clk 0:01:34.4]} 27... Rh8 {[%clk 0:01:08.7]} 28. Rf1
{[%clk 0:01:33.1]} 28... h5 {[%clk 0:00:53.2]} 29. fxe5 {[%clk 0:01:31.1]} 29...
dxe5 {[%clk 0:00:47.3]} 30. Bxe5 {[%clk 0:01:32]} 30... Nd7 {[%clk 0:00:45.8]}
31. Ba1 {[%clk 0:01:22.4]} 31... Rad8 {[%clk 0:00:42.8]} 32. Nd5 {[%clk
0:01:06.8]} 32... Bxd5 {[%clk 0:00:40.7]} 33. cxd5 {[%clk 0:01:07.5]} 33... Rhe8
{[%clk 0:00:36.8]} 34. Qe2 {[%clk 0:00:48.9]} 34... Nd6 {[%clk 0:00:36]} 35. Bb1
{[%clk 0:00:39.2]} 35... Re7 {[%clk 0:00:23.1]} 36. Rxc5 {[%clk 0:00:25.9]}
36... Ne5 {[%clk 0:00:06.9]} 37. Bxe5 {[%clk 0:00:22.2]} 37... Rxe5 {[%clk
0:00:06.9]} 38. Rc6 {[%clk 0:00:22.6]} 38... Qe7 {[%clk 0:00:06.1]} 39. Qf2
{[%clk 0:00:20.3]} 39... Rf8 {[%clk 0:00:04.1]} 40. b6 {[%clk 0:00:20.3]} 40...
Nxe4 {[%clk 0:00:03.7]} 41. Bxe4 {[%clk 0:00:20]} 41... Rxe4 {[%clk 0:00:04.6]}
42. Rc7 {[%clk 0:00:20.3]} 1-0

[Event "Early-Titled-Tuesday-Blitz-September-05-2023"]
[Site "Chess.com"]
[Date "2023.09.05"]
[Round "7"]
[White "GOGIEFF"]
[Black "Zkid"]
[Result "1-0"]
[WhiteElo "3011"]
[BlackElo "2869"]
[TimeControl "180+1"]
[EndTime "9:16:50 PDT"]
[Termination "GOGIEFF won on time"]

1. d4 {[%clk 0:03:00.3]} 1... d5 {[%clk 0:03:00.1]} 2. c4 {[%clk 0:02:59.7]}
2... dxc4 {[%clk 0:03:01]} 3. e4 {[%clk 0:02:58.7]} 3... Nf6 {[%clk 0:03:01]} 4.
e5 {[%clk 0:02:58.3]} 4... Nd5 {[%clk 0:03:01.7]} 5. Bxc4 {[%clk 0:02:58.8]}
5... Nc6 {[%clk 0:03:02.4]} 6. Ne2 {[%clk 0:02:53.5]} 6... Bf5 {[%clk
0:03:02.4]} 7. O-O {[%clk 0:02:46]} 7... e6 {[%clk 0:03:02.2]} 8. Nbc3 {[%clk
0:02:45.9]} 8... Nb6 {[%clk 0:03:02.3]} 9. Bb3 {[%clk 0:02:46]} 9... Qd7 {[%clk
0:02:57.7]} 10. Be3 {[%clk 0:02:45.9]} 10... O-O-O {[%clk 0:02:57.6]} 11. Rc1
{[%clk 0:02:42.3]} 11... Kb8 {[%clk 0:02:57.5]} 12. Bc2 {[%clk 0:02:36]} 12...
Bxc2 {[%clk 0:02:55.9]} 13. Qxc2 {[%clk 0:02:35.5]} 13... f6 {[%clk 0:02:46.5]}
14. Rfd1 {[%clk 0:02:34.9]} 14... Nb4 {[%clk 0:02:46.1]} 15. Qb3 {[%clk
0:02:30.1]} 15... N4d5 {[%clk 0:02:40.8]} 16. Ne4 {[%clk 0:02:25.7]} 16... f5
{[%clk 0:02:31.3]} 17. Nc5 {[%clk 0:02:24.4]} 17... Qc8 {[%clk 0:02:24.5]} 18.
a4 {[%clk 0:02:06.8]} 18... Nxe3 {[%clk 0:02:22]} 19. fxe3 {[%clk 0:02:06.6]}
19... Bxc5 {[%clk 0:02:20.7]} 20. Rxc5 {[%clk 0:02:02.6]} 20... Nd5 {[%clk
0:02:06.5]} 21. Rdc1 {[%clk 0:01:51.6]} 21... Qd7 {[%clk 0:01:58.7]} 22. Nc3
{[%clk 0:01:42.8]} 22... Nxe3 {[%clk 0:01:43.8]} 23. Nb5 {[%clk 0:01:41.4]}
23... Nd5 {[%clk 0:01:43.7]} 24. Nxc7 {[%clk 0:01:31.7]} 24... Nxc7 {[%clk
0:01:41.1]} 25. Rxc7 {[%clk 0:01:29.3]} 25... Qxd4+ {[%clk 0:01:40.6]} 26. Kh1
{[%clk 0:01:28.1]} 26... Qd5 {[%clk 0:01:19.2]} 27. Qxd5 {[%clk 0:01:12.4]}
27... Rxd5 {[%clk 0:01:19]} 28. Rxg7 {[%clk 0:01:12]} 28... Rc8 {[%clk
0:01:02.9]} 29. Rxc8+ {[%clk 0:01:06.8]} 29... Kxc8 {[%clk 0:01:03.8]} 30. h4
{[%clk 0:01:07]} 30... Rd7 {[%clk 0:00:50.4]} 31. Rg8+ {[%clk 0:01:02.4]} 31...
Rd8 {[%clk 0:00:50.4]} 32. Rxd8+ {[%clk 0:00:51.4]} 32... Kxd8 {[%clk
0:00:50.6]} 33. Kh2 {[%clk 0:00:52.3]} 33... Kc7 {[%clk 0:00:15]} 34. Kg3 {[%clk
0:00:49.2]} 34... Kc6 {[%clk 0:00:15]} 35. Kf4 {[%clk 0:00:49.2]} 35... Kd5
{[%clk 0:00:12.4]} 36. a5 {[%clk 0:00:48.4]} 36... b5 {[%clk 0:00:09.8]} 37. b4
{[%clk 0:00:29.4]} 37... a6 {[%clk 0:00:04.1]} 38. g3 {[%clk 0:00:23.2]} 38...
Kd4 {[%clk 0:00:04.3]} 39. Kg5 {[%clk 0:00:21.4]} 39... Kxe5 {[%clk 0:00:04.4]}
40. Kh6 {[%clk 0:00:21]} 40... Kf6 {[%clk 0:00:03.4]} 41. Kxh7 {[%clk
0:00:21.5]} 41... e5 {[%clk 0:00:03.9]} 42. h5 {[%clk 0:00:19.5]} 42... Kf7
{[%clk 0:00:02.7]} 43. h6 {[%clk 0:00:19.3]} 43... e4 {[%clk 0:00:03.1]} 44. g4
{[%clk 0:00:19.1]} 1-0

[Event "Early-Titled-Tuesday-Blitz-September-05-2023"]
[Site "Chess.com"]
[Date "2023.09.05"]
[Round "7"]
[White "enkhtuul"]
[Black "knightinshiningarmour16"]
[Result "1-0"]
[WhiteElo "2353"]
[BlackElo "2115"]
[TimeControl "180+1"]
[EndTime "9:16:50 PDT"]
[Termination "enkhtuul won by resignation"]

1. e4 {[%clk 0:03:00.9]} 1... c6 {[%clk 0:02:59.6]} 2. d4 {[%clk 0:02:59.4]}
2... d5 {[%clk 0:02:59.4]} 3. f3 {[%clk 0:02:59.4]} 3... a6 {[%clk 0:02:55.9]}
4. e5 {[%clk 0:02:56.9]} 4... Bf5 {[%clk 0:02:53]} 5. Bd3 {[%clk 0:02:55.2]}
5... Bxd3 {[%clk 0:02:51.6]} 6. Qxd3 {[%clk 0:02:56.1]} 6... e6 {[%clk
0:02:52.2]} 7. Ne2 {[%clk 0:02:56.4]} 7... c5 {[%clk 0:02:51.8]} 8. c4 {[%clk
0:02:54.1]} 8... dxc4 {[%clk 0:02:49]} 9. Qxc4 {[%clk 0:02:53.8]} 9... Nd7
{[%clk 0:02:39.8]} 10. Nbc3 {[%clk 0:02:39.1]} 10... cxd4 {[%clk 0:02:33]} 11.
Qxd4 {[%clk 0:02:38.8]} 11... Ne7 {[%clk 0:02:30.9]} 12. Bg5 {[%clk 0:02:37]}
12... Qc7 {[%clk 0:02:26.4]} 13. Bxe7 {[%clk 0:02:33.5]} 13... Bxe7 {[%clk
0:02:27.2]} 14. f4 {[%clk 0:02:31.9]} 14... O-O-O {[%clk 0:02:22.5]} 15. O-O-O
{[%clk 0:02:28.1]} 15... Kb8 {[%clk 0:02:12.1]} 16. Kb1 {[%clk 0:02:27.2]} 16...
Bc5 {[%clk 0:02:07.9]} 17. Qe4 {[%clk 0:02:26]} 17... g6 {[%clk 0:02:03]} 18.
Na4 {[%clk 0:02:24.2]} 18... Be7 {[%clk 0:02:01.6]} 19. Rc1 {[%clk 0:02:23.8]}
19... Qa5 {[%clk 0:02:00.3]} 20. Rhd1 {[%clk 0:02:20.5]} 20... Nb6 {[%clk
0:01:50]} 21. Nxb6 {[%clk 0:02:15.4]} 21... Qxb6 {[%clk 0:01:50.9]} 22. Nc3
{[%clk 0:02:10.2]} 22... Qb4 {[%clk 0:01:40.8]} 23. Qf3 {[%clk 0:02:03.2]} 23...
Bc5 {[%clk 0:01:12]} 24. Ne4 {[%clk 0:01:53]} 24... Bd4 {[%clk 0:01:02.6]} 25.
Rd2 {[%clk 0:01:51]} 25... Rc8 {[%clk 0:00:57.3]} 26. Rxc8+ {[%clk 0:01:36.4]}
26... Rxc8 {[%clk 0:00:58.2]} 27. a3 {[%clk 0:01:36.2]} 27... Qb6 {[%clk
0:00:42.7]} 28. g3 {[%clk 0:01:16.9]} 28... Be3 {[%clk 0:00:35.9]} 29. Rc2
{[%clk 0:01:10.6]} 29... Rxc2 {[%clk 0:00:31.6]} 30. Kxc2 {[%clk 0:01:11.5]}
30... Bd4 {[%clk 0:00:22]} 31. Nc3 {[%clk 0:01:03.4]} 31... Qc5 {[%clk
0:00:13.8]} 32. b4 {[%clk 0:00:57.5]} 32... Qxc3+ {[%clk 0:00:11.2]} 33. Qxc3
{[%clk 0:00:57]} 33... Bxc3 {[%clk 0:00:12.1]} 34. Kxc3 {[%clk 0:00:57.6]} 34...
Kc7 {[%clk 0:00:13]} 35. Kc4 {[%clk 0:00:58]} 35... b5+ {[%clk 0:00:12.9]} 36.
Kc5 {[%clk 0:00:56.8]} 36... h6 {[%clk 0:00:13.2]} 37. h3 {[%clk 0:00:56.3]}
37... h5 {[%clk 0:00:13.4]} 38. h4 {[%clk 0:00:53.7]} 38... Kb7 {[%clk
0:00:12.8]} 39. Kd6 {[%clk 0:00:53.7]} 39... a5 {[%clk 0:00:12.8]} 40. Ke7
{[%clk 0:00:50.8]} 40... axb4 {[%clk 0:00:12.7]} 41. axb4 {[%clk 0:00:51.5]}
41... Kc6 {[%clk 0:00:13.6]} 42. Kxf7 {[%clk 0:00:52]} 42... Kd5 {[%clk
0:00:14.5]} 43. Kf6 {[%clk 0:00:52.4]} 43... Kc4 {[%clk 0:00:15.4]} 44. Kxe6
{[%clk 0:00:53.1]} 44... Kxb4 {[%clk 0:00:16.3]} 45. Kf6 {[%clk 0:00:50.4]}
45... Kc3 {[%clk 0:00:17]} 46. e6 {[%clk 0:00:51]} 46... b4 {[%clk 0:00:17.9]}
47. e7 {[%clk 0:00:51.9]} 47... b3 {[%clk 0:00:18.6]} 48. e8=Q {[%clk
0:00:52.8]} 48... b2 {[%clk 0:00:19.1]} 49. Qe1+ {[%clk 0:00:53.4]} 49... Kc2
{[%clk 0:00:18.9]} 50. Qe2+ {[%clk 0:00:54]} 50... Kc1 {[%clk 0:00:19]} 51.
Qxb2+ {[%clk 0:00:54.7]} 51... Kxb2 {[%clk 0:00:19.3]} 52. Kxg6 {[%clk
0:00:55.4]} 52... Kc3 {[%clk 0:00:20.2]} 53. f5 {[%clk 0:00:56.3]} 53... Kd4
{[%clk 0:00:20.8]} 54. f6 {[%clk 0:00:57.2]} 54... Ke5 {[%clk 0:00:21.3]} 55. f7
{[%clk 0:00:58.1]} 55... Ke4 {[%clk 0:00:21.1]} 56. f8=Q {[%clk 0:00:59]} 1-0

[Event "Early-Titled-Tuesday-Blitz-September-05-2023"]
[Site "Chess.com"]
[Date "2023.09.05"]
[Round "7"]
[White "mishanick"]
[Black "ChessQueen"]
[Result "1-0"]
[WhiteElo "3074"]
[BlackElo "2774"]
[TimeControl "180+1"]
[EndTime "9:16:51 PDT"]
[Termination "mishanick won on time"]

1. d4 {[%clk 0:03:00.9]} 1... Nf6 {[%clk 0:02:59.5]} 2. c4 {[%clk 0:03:01.6]}
2... e6 {[%clk 0:02:59.8]} 3. Nc3 {[%clk 0:03:02.2]} 3... Bb4 {[%clk 0:03:00]}
4. e3 {[%clk 0:03:02.7]} 4... b6 {[%clk 0:03:00.3]} 5. Bd3 {[%clk 0:03:02.2]}
5... Bb7 {[%clk 0:02:59.3]} 6. Nf3 {[%clk 0:03:02.8]} 6... Ne4 {[%clk
0:02:57.8]} 7. O-O {[%clk 0:02:59.1]} 7... f5 {[%clk 0:02:44.8]} 8. Qc2 {[%clk
0:02:35.3]} 8... Nxc3 {[%clk 0:02:35.1]} 9. bxc3 {[%clk 0:02:34.8]} 9... Bxf3
{[%clk 0:02:34.4]} 10. gxf3 {[%clk 0:02:31.5]} 10... Bd6 {[%clk 0:02:27.7]} 11.
e4 {[%clk 0:02:05.9]} 11... Qh4 {[%clk 0:02:24.7]} 12. e5 {[%clk 0:02:02.9]}
12... Be7 {[%clk 0:02:24.8]} 13. Kh1 {[%clk 0:01:57.6]} 13... Bg5 {[%clk
0:02:24.6]} 14. Rg1 {[%clk 0:01:52.1]} 14... Bxc1 {[%clk 0:02:18.8]} 15. Raxc1
{[%clk 0:01:53]} 15... g6 {[%clk 0:02:07.2]} 16. Qd2 {[%clk 0:01:44.4]} 16...
Nc6 {[%clk 0:02:04.8]} 17. Qe3 {[%clk 0:01:38.2]} 17... Kf7 {[%clk 0:01:56.8]}
18. f4 {[%clk 0:01:36.4]} 18... Rag8 {[%clk 0:01:54]} 19. c5 {[%clk 0:01:21.3]}
19... bxc5 {[%clk 0:01:44.7]} 20. dxc5 {[%clk 0:01:21.4]} 20... Ne7 {[%clk
0:01:15.1]} 21. c4 {[%clk 0:01:16.4]} 21... g5 {[%clk 0:01:08.1]} 22. Rxg5
{[%clk 0:00:55.1]} 22... Rxg5 {[%clk 0:01:05.9]} 23. fxg5 {[%clk 0:00:56]} 23...
h6 {[%clk 0:01:06.3]} 24. g6+ {[%clk 0:00:56.3]} 24... Nxg6 {[%clk 0:01:06.1]}
25. Rd1 {[%clk 0:00:52.2]} 25... Rd8 {[%clk 0:00:55.9]} 26. Be2 {[%clk
0:00:48.9]} 26... c6 {[%clk 0:00:50.7]} 27. Bf3 {[%clk 0:00:33.3]} 27... Nf8
{[%clk 0:00:36.6]} 28. Rd4 {[%clk 0:00:30.6]} 28... Qg5 {[%clk 0:00:27]} 29. Qe1
{[%clk 0:00:18.2]} 29... Rb8 {[%clk 0:00:23.3]} 30. h4 {[%clk 0:00:18.6]} 30...
Qe7 {[%clk 0:00:14.9]} 31. Qa5 {[%clk 0:00:16.8]} 31... Rb2 {[%clk 0:00:08.8]}
32. Kg2 {[%clk 0:00:14.8]} 32... Kg8 {[%clk 0:00:07]} 33. Kf1 {[%clk 0:00:09.3]}
33... Qg7 {[%clk 0:00:04.6]} 34. Qe1 {[%clk 0:00:04.3]} 34... Qe7 {[%clk
0:00:03]} 35. Qa5 {[%clk 0:00:03.7]} 35... Qg7 {[%clk 0:00:03.1]} 36. Qe1 {[%clk
0:00:04.1]} 36... Rxa2 {[%clk 0:00:03.4]} 37. Qe3 {[%clk 0:00:04.2]} 37... Ra1+
{[%clk 0:00:01.7]} 38. Bd1 {[%clk 0:00:04.7]} 1-0

[Event "Early-Titled-Tuesday-Blitz-September-05-2023"]
[Site "Chess.com"]
[Date "2023.09.05"]
[Round "7"]
[White "wonderfultime"]
[Black "hansen"]
[Result "1-0"]
[WhiteElo "3001"]
[BlackElo "2868"]
[TimeControl "180+1"]
[EndTime "9:16:51 PDT"]
[Termination "wonderfultime won on time"]

1. d4 {[%clk 0:03:00]} 1... Nf6 {[%clk 0:02:59.8]} 2. Nf3 {[%clk 0:02:58.5]}
2... g6 {[%clk 0:02:57.9]} 3. Nbd2 {[%clk 0:02:57.7]} 3... Bg7 {[%clk
0:02:54.5]} 4. e4 {[%clk 0:02:54.8]} 4... d6 {[%clk 0:02:54.8]} 5. Bb5+ {[%clk
0:02:54.3]} 5... Nfd7 {[%clk 0:02:50.4]} 6. O-O {[%clk 0:02:50]} 6... O-O {[%clk
0:02:50.4]} 7. Re1 {[%clk 0:02:45.9]} 7... e5 {[%clk 0:02:47.5]} 8. c3 {[%clk
0:02:45.6]} 8... a6 {[%clk 0:02:46.5]} 9. Ba4 {[%clk 0:02:36.3]} 9... Nb6 {[%clk
0:02:44.8]} 10. Bb3 {[%clk 0:02:32.7]} 10... exd4 {[%clk 0:02:24]} 11. Nxd4
{[%clk 0:02:32.6]} 11... N8d7 {[%clk 0:02:22.4]} 12. N2f3 {[%clk 0:02:30.2]}
12... Nc5 {[%clk 0:02:21.2]} 13. Bc2 {[%clk 0:02:30.5]} 13... Re8 {[%clk
0:02:20.2]} 14. Bg5 {[%clk 0:02:29.3]} 14... Bf6 {[%clk 0:02:14.6]} 15. Bh6
{[%clk 0:02:09.6]} 15... Bd7 {[%clk 0:02:02.6]} 16. h3 {[%clk 0:02:06.6]} 16...
Nc4 {[%clk 0:01:54.3]} 17. b3 {[%clk 0:02:00.8]} 17... Na3 {[%clk 0:01:49.9]}
18. Bd3 {[%clk 0:01:44.2]} 18... Nxd3 {[%clk 0:01:49.4]} 19. Qxd3 {[%clk
0:01:45.1]} 19... c5 {[%clk 0:01:17.8]} 20. Ne2 {[%clk 0:01:45.1]} 20... c4
{[%clk 0:01:13.1]} 21. Qd2 {[%clk 0:01:23.4]} 21... Rc8 {[%clk 0:01:05.5]} 22.
Rad1 {[%clk 0:01:13.6]} 22... Rxe4 {[%clk 0:00:57]} 23. Qxd6 {[%clk 0:01:13.7]}
23... Nc2 {[%clk 0:00:52.2]} 24. Ng3 {[%clk 0:01:06.7]} 24... Rxe1+ {[%clk
0:00:43.3]} 25. Nxe1 {[%clk 0:01:06.9]} 25... Nxe1 {[%clk 0:00:43.5]} 26. Rxe1
{[%clk 0:01:07.8]} 26... Bc6 {[%clk 0:00:24.9]} 27. Qf4 {[%clk 0:00:44.8]} 27...
Bxc3 {[%clk 0:00:18.4]} 28. Rc1 {[%clk 0:00:40.2]} 28... Qd5 {[%clk 0:00:15.7]}
29. Qf3 {[%clk 0:00:13.6]} 29... Qxf3 {[%clk 0:00:07.1]} 30. gxf3 {[%clk
0:00:14.5]} 30... Be5 {[%clk 0:00:05.1]} 31. Rxc4 {[%clk 0:00:13.9]} 31... f5
{[%clk 0:00:05.6]} 32. Kg2 {[%clk 0:00:10.7]} 32... Rd8 {[%clk 0:00:05]} 33. Ne2
{[%clk 0:00:06.6]} 33... Rd3 {[%clk 0:00:04.8]} 34. Be3 {[%clk 0:00:07.2]} 34...
Kf7 {[%clk 0:00:03.9]} 35. Nf4 {[%clk 0:00:04.3]} 35... Rd1 {[%clk 0:00:01.3]}
36. h4 {[%clk 0:00:04.8]} 36... Bf6 {[%clk 0:00:01.1]} 37. Nh3 {[%clk
0:00:04.9]} 1-0

[Event "Early-Titled-Tuesday-Blitz-September-05-2023"]
[Site "Chess.com"]
[Date "2023.09.05"]
[Round "7"]
[White "KChor05TTV"]
[Black "Vuk2000"]
[Result "0-1"]
[WhiteElo "2612"]
[BlackElo "2751"]
[TimeControl "180+1"]
[EndTime "9:16:52 PDT"]
[Termination "Vuk2000 won by resignation"]

1. d4 {[%clk 0:03:00.9]} 1... Nf6 {[%clk 0:03:00]} 2. c4 {[%clk 0:03:00.5]} 2...
e6 {[%clk 0:03:00.4]} 3. g3 {[%clk 0:03:00.6]} 3... d5 {[%clk 0:03:00.2]} 4. Nf3
{[%clk 0:03:00]} 4... Bb4+ {[%clk 0:02:59.2]} 5. Bd2 {[%clk 0:02:48.1]} 5... Bd6
{[%clk 0:02:58.2]} 6. Qc2 {[%clk 0:02:21.7]} 6... b6 {[%clk 0:02:52.7]} 7. Bg2
{[%clk 0:02:17.2]} 7... O-O {[%clk 0:02:51.9]} 8. Ne5 {[%clk 0:02:13.2]} 8...
Bb7 {[%clk 0:02:42.9]} 9. Nc3 {[%clk 0:02:06.9]} 9... Nc6 {[%clk 0:02:17.9]} 10.
Nxc6 {[%clk 0:01:59.9]} 10... Bxc6 {[%clk 0:02:18.8]} 11. Bg5 {[%clk 0:01:50.8]}
11... Be7 {[%clk 0:01:34.3]} 12. Rd1 {[%clk 0:01:38.3]} 12... Qd7 {[%clk
0:01:29.7]} 13. O-O {[%clk 0:01:21.5]} 13... dxc4 {[%clk 0:01:09.6]} 14. e4
{[%clk 0:01:20.4]} 14... Bb7 {[%clk 0:01:04.1]} 15. d5 {[%clk 0:01:02.9]} 15...
e5 {[%clk 0:00:50.6]} 16. f4 {[%clk 0:01:00.3]} 16... Bc5+ {[%clk 0:00:43.4]}
17. Kh1 {[%clk 0:00:59.3]} 17... Ng4 {[%clk 0:00:43.7]} 18. Qe2 {[%clk
0:00:37.6]} 18... Ne3 {[%clk 0:00:41.3]} 19. fxe5 {[%clk 0:00:36.6]} 19... Nxd1
{[%clk 0:00:38.4]} 20. Rxd1 {[%clk 0:00:35.8]} 20... Rae8 {[%clk 0:00:38.8]} 21.
Bf4 {[%clk 0:00:36]} 21... b5 {[%clk 0:00:36.3]} 22. h4 {[%clk 0:00:22.2]} 22...
b4 {[%clk 0:00:35.7]} 23. Nb1 {[%clk 0:00:21.3]} 23... Ba6 {[%clk 0:00:35.9]}
24. Kh2 {[%clk 0:00:20.3]} 24... Qa4 {[%clk 0:00:27]} 25. Qg4 {[%clk 0:00:17.4]}
25... Kh8 {[%clk 0:00:19.9]} 26. h5 {[%clk 0:00:15.3]} 26... Rg8 {[%clk
0:00:17.3]} 27. Rf1 {[%clk 0:00:14.8]} 27... c3 {[%clk 0:00:15]} 28. bxc3 {[%clk
0:00:14.6]} 28... Bxf1 {[%clk 0:00:14.7]} 29. Bxf1 {[%clk 0:00:11.9]} 29...
Qxa2+ {[%clk 0:00:14.9]} 30. Kh3 {[%clk 0:00:10.7]} 30... Qxb1 {[%clk
0:00:14.8]} 31. Bg2 {[%clk 0:00:11.3]} 31... h6 {[%clk 0:00:11.7]} 32. Qf5
{[%clk 0:00:10.5]} 32... bxc3 {[%clk 0:00:10.9]} 33. e6 {[%clk 0:00:10.3]} 33...
fxe6 {[%clk 0:00:10.2]} 34. dxe6 {[%clk 0:00:09.8]} 34... c2 {[%clk 0:00:09.8]}
35. Bxh6 {[%clk 0:00:03.9]} 35... c1=Q {[%clk 0:00:08]} 36. Bxc1 {[%clk
0:00:03.8]} 36... Qxc1 {[%clk 0:00:07.8]} 37. e5 {[%clk 0:00:04.5]} 37... Qh6
{[%clk 0:00:07.7]} 38. Be4 {[%clk 0:00:05]} 38... Rxe6 {[%clk 0:00:07.7]} 39.
Qg4 {[%clk 0:00:04.6]} 39... Be3 {[%clk 0:00:07.6]} 40. Bg6 {[%clk 0:00:05.5]}
40... Rxe5 {[%clk 0:00:07.9]} 41. Qd7 {[%clk 0:00:05]} 41... Rxh5+ {[%clk
0:00:07.8]} 42. Bxh5 {[%clk 0:00:05.2]} 42... Qxh5+ {[%clk 0:00:08.7]} 43. Kg2
{[%clk 0:00:05.9]} 43... Qh6 {[%clk 0:00:09.4]} 0-1

[Event "Early-Titled-Tuesday-Blitz-September-05-2023"]
[Site "Chess.com"]
[Date "2023.09.05"]
[Round "7"]
[White "only_strong_moves"]
[Black "Willychess95"]
[Result "1-0"]
[WhiteElo "2552"]
[BlackElo "2692"]
[TimeControl "180+1"]
[EndTime "9:16:52 PDT"]
[Termination "only_strong_moves won on time"]

1. d4 {[%clk 0:03:00.2]} 1... Nf6 {[%clk 0:02:57.3]} 2. Nc3 {[%clk 0:03:00.6]}
2... d5 {[%clk 0:02:56.3]} 3. Bf4 {[%clk 0:03:01.1]} 3... c6 {[%clk 0:02:53.2]}
4. e3 {[%clk 0:03:01.4]} 4... g6 {[%clk 0:02:52.6]} 5. Nf3 {[%clk 0:03:01.8]}
5... Bg7 {[%clk 0:02:52.9]} 6. Ne5 {[%clk 0:03:02.5]} 6... O-O {[%clk
0:02:52.8]} 7. h4 {[%clk 0:03:03.2]} 7... h5 {[%clk 0:02:48]} 8. Be2 {[%clk
0:03:03.3]} 8... Nbd7 {[%clk 0:02:46.8]} 9. f3 {[%clk 0:02:46.2]} 9... Re8
{[%clk 0:02:39]} 10. g4 {[%clk 0:02:44.8]} 10... Qa5 {[%clk 0:02:24.4]} 11. Qd2
{[%clk 0:02:35.6]} 11... Nb6 {[%clk 0:02:17.4]} 12. O-O-O {[%clk 0:02:27.8]}
12... Na4 {[%clk 0:01:56.2]} 13. Nxa4 {[%clk 0:02:16]} 13... Qxa4 {[%clk
0:01:55.1]} 14. Kb1 {[%clk 0:02:16.6]} 14... Be6 {[%clk 0:01:39.5]} 15. Rdg1
{[%clk 0:02:14.3]} 15... c5 {[%clk 0:01:32.5]} 16. c3 {[%clk 0:02:14.5]} 16...
b5 {[%clk 0:01:22.9]} 17. Bd3 {[%clk 0:02:02.6]} 17... b4 {[%clk 0:01:18.1]} 18.
gxh5 {[%clk 0:01:45.3]} 18... Nxh5 {[%clk 0:01:12]} 19. cxb4 {[%clk 0:01:43.6]}
19... Qxb4 {[%clk 0:01:02.6]} 20. Qxb4 {[%clk 0:01:39.5]} 20... cxb4 {[%clk
0:01:02.9]} 21. Bh2 {[%clk 0:01:29.1]} 21... Rec8 {[%clk 0:00:49.2]} 22. Rc1
{[%clk 0:01:20.2]} 22... Bh6 {[%clk 0:00:47]} 23. f4 {[%clk 0:00:55.3]} 23...
Nf6 {[%clk 0:00:44.1]} 24. Nc6 {[%clk 0:00:53.2]} 24... Bf8 {[%clk 0:00:40]} 25.
f5 {[%clk 0:00:50.6]} 25... Bxf5 {[%clk 0:00:36.4]} 26. Bxf5 {[%clk 0:00:50.4]}
26... gxf5 {[%clk 0:00:37.3]} 27. Nxb4 {[%clk 0:00:31.7]} 27... Kh7 {[%clk
0:00:28.2]} 28. Be5 {[%clk 0:00:26.9]} 28... a5 {[%clk 0:00:26.4]} 29. Bxf6
{[%clk 0:00:13.8]} 29... axb4 {[%clk 0:00:26.3]} 30. Be5 {[%clk 0:00:13.7]}
30... Re8 {[%clk 0:00:22.1]} 31. Rc5 {[%clk 0:00:10.3]} 31... Ra6 {[%clk
0:00:20.9]} 32. Rxd5 {[%clk 0:00:09.4]} 32... Rea8 {[%clk 0:00:20.9]} 33. Rg1
{[%clk 0:00:05.4]} 33... Rxa2 {[%clk 0:00:20.4]} 34. Kc2 {[%clk 0:00:04.5]}
34... R2a6 {[%clk 0:00:14.4]} 35. Bf4 {[%clk 0:00:04.5]} 35... e6 {[%clk
0:00:12.8]} 36. Rb5 {[%clk 0:00:04]} 36... Rc6+ {[%clk 0:00:11.1]} 37. Kb3
{[%clk 0:00:03.6]} 37... Rac8 {[%clk 0:00:06.7]} 38. Rb7 {[%clk 0:00:03.9]} 1-0